fUST/lending_fUST_20250527
["ID","MTS","AMOUNT","RATE_DAILY","PERIOD"]
[362481756,1748333451774,-430.0,0.00021095,2]
[362481757,1748333451783,-430.0,0.00021095,2]
[362481758,1748333451794,-430.0,0.00021095,2]
[362481759,1748333451803,-430.0,0.00021095,2]
[362481760,1748333451813,-570.75,0.00021095,2]
[362481762,1748333451823,-430.0,0.00021095,2]
[362481763,1748333451832,-430.0,0.00021095,2]
[362481765,1748333451842,-548.89,0.00021095,2]
[362481767,1748333451851,-430.0,0.00021095,2]
[362481770,1748333451860,-430.0,0.00021095,2]
[362481772,1748333451870,-506.96,0.00021095,2]
[362481774,1748333451879,-693.1,0.00021095,2]
[362481776,1748333451889,-870.83,0.00021095,2]
[362481778,1748333451898,-151.0,0.00021095,2]
[362481780,1748333451909,-430.0,0.00021095,2]
[362481782,1748333451919,-732.75,0.00021095,2]
[362481784,1748333451928,-404.08,0.00021165,2]
[362481786,1748333451938,-417.050636,0.00021364,3]
[362481788,1748333451947,-430.0,0.00021369,2]
[362481790,1748333451957,-430.0,0.00021369,2]
[362481792,1748333451966,-430.0,0.00021369,2]
[362481794,1748333451976,-430.0,0.00021369,2]
[362481796,1748333451985,-430.0,0.00021369,2]
[362481798,1748333451994,-430.0,0.00021369,2]
[362481800,1748333452003,-151.0,0.00021369,2]
[362481802,1748333452013,-151.0,0.00021369,2]
[362481804,1748333452023,-430.0,0.00021369,2]
[362481806,1748333452032,-699.27,0.00021369,2]
[362481808,1748333452042,-430.0,0.00021369,2]
[362481810,1748333452051,-430.0,0.00021369,2]
[362481812,1748333452061,-151.0,0.00021369,2]
[362481814,1748333452070,-1074.85,0.00021369,2]
[362481816,1748333452079,-430.0,0.00021369,2]
[362481818,1748333452088,-579.1,0.00021369,2]
[362481820,1748333452098,-430.0,0.00021369,2]
[362481822,1748333452107,-956.64,0.00021369,2]
[362481824,1748333452117,-430.0,0.00021369,2]
[362481826,1748333452127,-430.0,0.00021369,2]
[362481828,1748333452136,-839.77,0.00021369,2]
[362481830,1748333452146,-430.0,0.00021369,2]
[362481832,1748333452156,-430.0,0.00021369,2]
[362481834,1748333452166,-754.47,0.00021369,2]
[362481836,1748333452176,-1725.46,0.00021369,2]
[362481838,1748333452186,-1665.2,0.00021369,2]
[362481840,1748333452196,-1353.44,0.00021369,2]
[362481842,1748333452205,-430.0,0.00021369,2]
[362481844,1748333452216,-2762.43,0.00021369,2]
[362481846,1748333452225,-459.09,0.00021369,2]
[362481848,1748333452236,-430.0,0.00021369,2]
[362481850,1748333452246,-644.76,0.00021369,2]
[362481852,1748333452255,-430.0,0.00021369,2]
[362481854,1748333452265,-430.0,0.00021369,2]
[362481856,1748333452275,-437.84,0.00021369,2]
[362481858,1748333452284,-430.0,0.00021369,2]
[362481861,1748333452295,-430.0,0.00021369,2]
[362481863,1748333452305,-430.0,0.00021369,2]
[362481865,1748333452315,-496.92,0.00021369,2]
[362481867,1748333452325,-430.0,0.00021369,2]
[362481869,1748333452335,-430.0,0.00021369,2]
[362481871,1748333452345,-430.0,0.00021369,2]
[362481873,1748333452354,-430.0,0.00021369,2]
[362481875,1748333452364,-430.0,0.00021369,2]
[362481877,1748333452374,-430.0,0.00021369,2]
[362481888,1748333452468,-570.75,0.00021369,2]
[362481890,1748333452478,-430.0,0.00021369,2]
[362481892,1748333452488,-548.89,0.00021369,2]
[362481894,1748333452498,-430.0,0.00021369,2]
[362481896,1748333452508,-430.0,0.00021369,2]
[362481898,1748333452517,-506.96,0.00021369,2]
[362481901,1748333452527,-693.1,0.00021369,2]
[362481903,1748333452537,-870.83,0.00021369,2]
[362481905,1748333452546,-430.0,0.00021369,2]
[362481907,1748333452556,-732.75,0.00021369,2]
[362481909,1748333452565,-209.32205078,0.00021471,5]
[362481911,1748333452575,-430.0,0.00021643,2]
[362481913,1748333452584,-430.0,0.00021643,2]
[362481915,1748333452594,-430.0,0.00021643,2]
[362481917,1748333452603,-430.0,0.00021643,2]
[362481919,1748333452613,-430.0,0.00021643,2]
[362481921,1748333452623,-430.0,0.00021643,2]
[362481923,1748333452633,-699.27,0.00021643,2]
[362481925,1748333452643,-430.0,0.00021643,2]
[362481927,1748333452654,-430.0,0.00021643,2]
[362481929,1748333452674,-1074.85,0.00021643,2]
[362481931,1748333452684,-430.0,0.00021643,2]
[362481933,1748333452694,-579.1,0.00021643,2]
[362481935,1748333452707,-430.0,0.00021643,2]
[362481937,1748333452717,-956.64,0.00021643,2]
[362481939,1748333452727,-430.0,0.00021643,2]
[362481941,1748333452737,-430.0,0.00021643,2]
[362481943,1748333452747,-839.77,0.00021643,2]
[362481945,1748333452756,-430.0,0.00021643,2]
[362481947,1748333452767,-430.0,0.00021643,2]
[362481949,1748333452778,-754.47,0.00021643,2]
[362481951,1748333452788,-1725.46,0.00021643,2]
[362481953,1748333452798,-1665.2,0.00021643,2]
[362481955,1748333452808,-1353.44,0.00021643,2]
[362481957,1748333452817,-430.0,0.00021643,2]
[362481959,1748333452827,-2762.43,0.00021643,2]
[362481961,1748333452836,-459.09,0.00021643,2]
[362481962,1748333452846,-430.0,0.00021643,2]
[362481965,1748333452856,-644.76,0.00021643,2]
[362481967,1748333452867,-430.0,0.00021643,2]
[362481969,1748333452877,-430.0,0.00021643,2]
[362481971,1748333452886,-437.84,0.00021643,2]
[362481973,1748333452896,-430.0,0.00021643,2]
[362481975,1748333452905,-430.0,0.00021643,2]
[362481977,1748333452915,-430.0,0.00021643,2]
[362481979,1748333452925,-496.92,0.00021643,2]
[362481981,1748333452935,-430.0,0.00021643,2]
[362481983,1748333452944,-430.0,0.00021643,2]
[362481985,1748333452954,-430.0,0.00021643,2]
[362481987,1748333452964,-368.78769799,0.00021643,2]
[362481989,1748333452974,-430.0,0.00021643,2]
[362481991,1748333452983,-430.0,0.00021643,2]
[362481993,1748333452993,-570.75,0.00021643,2]
[362481995,1748333453003,-430.0,0.00021643,2]
[362481997,1748333453013,-548.89,0.00021643,2]
[362481999,1748333453023,-430.0,0.00021643,2]
[362482001,1748333453033,-430.0,0.00021643,2]
[362482003,1748333453043,-506.96,0.00021643,2]
[362482005,1748333453053,-693.1,0.00021643,2]
[362482007,1748333453064,-870.83,0.00021643,2]
[362482009,1748333453073,-430.0,0.00021643,2]
[362482011,1748333453084,-732.75,0.00021643,2]
[362482013,1748333453093,-150.528,0.00021673,2]
[362482015,1748333453104,-240.033,0.00021673,2]
[362482017,1748333453114,-195.973,0.00021673,2]
[362482019,1748333453123,-961.0,0.00021673,2]
[362482021,1748333453133,-706.0,0.00021673,2]
[362482023,1748333453143,-2230.0,0.00021673,2]
[362482026,1748333453153,-12907.07546719,0.000217,2]
[362482028,1748333453164,-87926.15724217,0.000218,2]
[362482030,1748333453174,-43712.29234486,0.000218,2]
[362482032,1748333453188,-448.6639593,0.000218,2]
[362482035,1748333453199,-379.50160881,0.000218,2]
[362482056,1748333453387,-380.2112442,0.0001859,2]
[362482058,1748333453404,-39.7887558,0.0001859,2]
[362482060,1748333453414,-216.89961027,0.00019006,2]
[362482062,1748333453424,-430.0,0.00019178,2]
[362482064,1748333453434,-430.0,0.00019452,2]
[362482066,1748333453443,-430.0,0.00019726,2]
[362482068,1748333453452,-430.0,0.0002,2]
[362482071,1748333453462,-587.0,0.00020303,2]
[362482073,1748333453472,-252.80487876,0.000218,2]
[362482075,1748333453484,-1013.9836,0.000218,2]
[362482077,1748333453495,-331.0,0.000218,2]
[362482086,1748333453573,-292.22841264,0.00019522,2]
[362482088,1748333453583,-430.0,0.00020273,2]
[362482090,1748333453592,-362.86439043,0.00020547,2]
[362482092,1748333453604,-67.13560957,0.00020547,2]
[362482094,1748333453613,-430.0,0.00020821,2]
[362482096,1748333453623,-430.0,0.00021095,2]
[362482099,1748333453633,-430.0,0.00021369,2]
[362482101,1748333453643,-1597.65590362,0.000218,2]
[362482103,1748333453655,-550.73773191,0.000218,2]
[362482111,1748333453722,-381.92818453,0.0001999,3]
[362482113,1748333453734,-358.74181547,0.0001999,3]
[362482115,1748333453743,-1481.34,0.0002136,3]
[362482117,1748333453754,-430.0,0.00021643,2]
[362482119,1748333453763,-17108.6835987,0.000218,2]
[362482121,1748333453773,-13297.92299655,0.000218,3]
[362482123,1748333453782,-639.0,0.000218,2]
[362482125,1748333453792,-430.0,0.00021917,2]
[362482127,1748333453802,-430.0,0.00021917,2]
[362482129,1748333453812,-430.0,0.00021917,2]
[362482131,1748333453822,-500.0,0.00021917,2]
[362482133,1748333453832,-500.0,0.00021917,2]
[362482135,1748333453841,-500.0,0.00021917,2]
[362482137,1748333453851,-500.0,0.00021917,2]
[362482139,1748333453861,-610.1949948,0.00021917,2]
[362482141,1748333453870,-430.0,0.00021917,2]
[362482143,1748333453879,-430.0,0.00021917,2]
[362482145,1748333453889,-430.0,0.00021917,2]
[362482147,1748333453898,-430.0,0.00021917,2]
[362482149,1748333453908,-1074.85,0.00021917,2]
[362482151,1748333453918,-430.0,0.00021917,2]
[362482153,1748333453927,-579.1,0.00021917,2]
[362482155,1748333453936,-430.0,0.00021917,2]
[362482157,1748333453946,-956.64,0.00021917,2]
[362482159,1748333453956,-430.0,0.00021917,2]
[362482170,1748333454055,-430.0,0.00021917,2]
[362482172,1748333454066,-839.77,0.00021917,2]
[362482174,1748333454075,-430.0,0.00021917,2]
[362482176,1748333454085,-754.47,0.00021917,2]
[362482178,1748333454095,-1725.46,0.00021917,2]
[362482180,1748333454105,-1665.2,0.00021917,2]
[362482182,1748333454114,-1353.44,0.00021917,2]
[362482184,1748333454124,-430.0,0.00021917,2]
[362482186,1748333454134,-1318.67934414,0.00021917,2]
[362482961,1748333637137,7000.84663731,0.00016,2]
[362482962,1748334097718,164.752036,0.00013699,2]
[362482966,1748334449124,-533.95341838,0.00017007,2]
[362482968,1748334548230,-4466.04658162,0.00017007,2]
[362482969,1748334548251,-205.57842921,0.000176,2]
[362482970,1748334548273,-736.403168,0.00017677,2]
[362482971,1748334548294,-2635.29437677,0.00017705,2]
[362482972,1748334548314,-1626.2836811,0.00017766,2]
[362482973,1748334548336,-300.0,0.00017999,2]
[362482974,1748334548358,-5830.73928304,0.00018,2]
[362482975,1748334548379,-609.07129601,0.00018,2]
[362482976,1748334548400,-9647.04284965,0.00018,2]
[362482977,1748334548422,-1200.0,0.00018166,2]
[362482978,1748334548443,-300.0,0.00018166,2]
[362482979,1748334548464,-300.0,0.00018167,2]
[362482980,1748334548486,-1690.2226584,0.0001817,2]
[362482981,1748334566143,-4900.0,0.00016837,2]
[362482982,1748334566452,-100.0,0.00016837,2]
[362482986,1748334619376,4762.73620169,0.00017254,2]
[362482998,1748334631944,-20137.26379831,0.00017254,2]
[362482999,1748334631955,-5000.0,0.00017989,2]
[362483000,1748334631966,-611.1942392,0.0001817,2]
[362483001,1748334631975,-507.97498131,0.000189,2]
[362483002,1748334631985,-300.0,0.00018999,2]
[362483003,1748334631994,-300.0,0.00018999,2]
[362483004,1748334632003,-144283.79444158,0.00019,2]
[362483005,1748334632013,-597.85320696,0.00019106,2]
[362483006,1748334632023,-500.0,0.00019106,2]
[362483007,1748334632033,-394.98746746,0.00019106,2]
[362483008,1748334632042,-290.12745458,0.00019106,2]
[362483009,1748334632051,-500.0,0.00019106,2]
[362483010,1748334632061,-232.27467978,0.00019106,2]
[362483011,1748334632071,-370.34,0.00019168,3]
[362483012,1748334632081,-185.17,0.00019168,3]
[362483013,1748334632090,-555.52,0.00019168,3]
[362483015,1748334632104,-325.94000783,0.00019172,2]
[362483017,1748334632113,-500.0,0.00019172,2]
[362483019,1748334632122,-500.0,0.00019173,2]
[362483021,1748334632132,-500.0,0.00019173,2]
[362483023,1748334632142,-500.0,0.00019173,2]
[362483025,1748334632152,-501.00371335,0.00019173,2]
[362483027,1748334632161,-500.0,0.00019173,2]
[362483029,1748334632172,-500.0,0.00019173,2]
[362483031,1748334632181,-537.45245804,0.00019173,2]
[362483034,1748334632191,-500.0,0.00019173,2]
[362483037,1748334632201,-500.0,0.00019173,2]
[362483040,1748334632211,-400.80650554,0.00019178,2]
[362483043,1748334632220,-396.34833083,0.00019178,2]
[362483046,1748334632230,-430.0,0.00019178,2]
[362483049,1748334632239,-246.64080899,0.00019178,2]
[362483052,1748334632249,-220.33534564,0.00019178,2]
[362483055,1748334632259,-416.82741354,0.00019178,2]
[362483058,1748334632268,-430.0,0.00019178,2]
[362483060,1748334632278,-400.14908512,0.00019178,2]
[362483062,1748334632287,-400.0,0.00019178,2]
[362483064,1748334632296,-406.56684293,0.00019178,2]
[362483066,1748334632306,-430.0,0.00019178,2]
[362483067,1748334632316,-234.68903668,0.00019178,2]
[362483069,1748334632325,-430.0,0.00019178,2]
[362483071,1748334632335,-430.0,0.00019178,2]
[362483072,1748334632344,-430.0,0.00019178,2]
[362483073,1748334632354,-430.0,0.00019178,2]
[362483074,1748334632364,-430.0,0.00019178,2]
[362483076,1748334632373,-430.0,0.00019178,2]
[362483078,1748334632383,-430.0,0.00019178,2]
[362483080,1748334632393,-430.0,0.00019178,2]
[362483082,1748334632403,-430.0,0.00019178,2]
[362483084,1748334632412,-430.0,0.00019178,2]
[362483086,1748334632421,-430.0,0.00019178,2]
[362483088,1748334632432,-518.69846709,0.00019178,2]
[362483090,1748334632442,-430.0,0.00019178,2]
[362483092,1748334632452,-370.0,0.00019178,2]
[362483094,1748334632463,-430.0,0.00019178,2]
[362483097,1748334632474,-470.0,0.00019178,2]
[362483098,1748334632485,-420.0,0.00019178,2]
[362483099,1748334632495,-430.0,0.00019178,2]
[362483100,1748334632504,-430.0,0.00019178,2]
[362483101,1748334632515,-430.0,0.00019178,2]
[362483102,1748334632524,-430.0,0.00019178,2]
[362483103,1748334632534,-403.89836182,0.00019178,2]
[362483104,1748334632544,-430.0,0.00019178,2]
[362483105,1748334632553,-570.0,0.00019178,2]
[362483106,1748334632564,-430.0,0.00019178,2]
[362483107,1748334632573,-430.0,0.00019178,2]
[362483108,1748334632584,-430.0,0.00019178,2]
[362483109,1748334632593,-430.0,0.00019178,2]
[362483110,1748334632605,-430.0,0.00019178,2]
[362483111,1748334632615,-430.0,0.00019178,2]
[362483112,1748334632625,-411.31593003,0.00019178,2]
[362483113,1748334632635,-430.0,0.00019178,2]
[362483115,1748334632644,-400.0,0.00019178,2]
[362483116,1748334632654,-430.0,0.00019178,2]
[362483117,1748334632663,-221.37594871,0.00019178,2]
[362483118,1748334632672,-400.0,0.00019178,2]
[362483119,1748334632682,-430.0,0.00019178,2]
[362483120,1748334632691,-430.0,0.00019178,2]
[362483121,1748334632700,-400.0,0.00019178,2]
[362483122,1748334632710,-430.0,0.00019178,2]
[362483123,1748334632719,-430.0,0.00019178,2]
[362483124,1748334632729,-430.0,0.00019178,2]
[362483125,1748334632738,-430.0,0.00019178,2]
[362483126,1748334632748,-524.24826083,0.00019178,2]
[362483127,1748334632757,-430.0,0.00019178,2]
[362483128,1748334632766,-430.0,0.00019178,2]
[362483129,1748334632776,-430.0,0.00019178,2]
[362483130,1748334632786,-430.0,0.00019178,2]
[362483131,1748334632796,-247.23919966,0.00019178,2]
[362483132,1748334632806,-414.25997631,0.00019178,2]
[362483133,1748334632815,-430.0,0.00019178,2]
[362483134,1748334632825,-420.0,0.00019178,2]
[362483135,1748334632835,-430.0,0.00019178,2]
[362483136,1748334632845,-430.0,0.00019178,2]
[362483137,1748334632858,-520.62143954,0.00019178,2]
[362483138,1748334632868,-430.0,0.00019178,2]
[362483139,1748334632877,-370.0,0.00019178,2]
[362483140,1748334632887,-370.0,0.00019178,2]
[362483141,1748334632896,-313.33116088,0.00019178,2]
[362483142,1748334632905,-370.0,0.00019178,2]
[362483143,1748334632915,-430.0,0.00019178,2]
[362483144,1748334632925,-430.0,0.00019178,2]
[362483145,1748334632934,-430.0,0.00019178,2]
[362483146,1748334632943,-400.13845116,0.00019178,2]
[362483147,1748334632952,-430.05677631,0.00019178,2]
[362483148,1748334632962,-401.99909282,0.00019178,2]
[362483149,1748334632971,-430.0,0.00019178,2]
[362483150,1748334632982,-430.0,0.00019178,2]
[362483151,1748334632991,-430.0,0.00019178,2]
[362483152,1748334633001,-350.0,0.00019178,2]
[362483153,1748334633010,-430.0,0.00019178,2]
[362483154,1748334633020,-430.0,0.00019178,2]
[362483155,1748334633031,-541.6903197,0.00019178,2]
[362483156,1748334633040,-370.0,0.00019178,2]
[362483157,1748334633050,-485.13817833,0.00019178,2]
[362483158,1748334633060,-430.0,0.00019178,2]
[362483159,1748334633072,-320.0,0.00019178,2]
[362483160,1748334633082,-350.58061826,0.00019178,2]
[362483161,1748334633224,-450.0,0.00019178,2]
[362483162,1748334633235,-430.0,0.00019178,2]
[362483163,1748334633245,-430.0,0.00019178,2]
[362483164,1748334633255,-430.0,0.00019178,2]
[362483165,1748334633265,-406.26,0.00019178,2]
[362483166,1748334633275,-430.0,0.00019178,2]
[362483167,1748334633286,-370.0,0.00019178,2]
[362483168,1748334633296,-430.0,0.00019178,2]
[362483169,1748334633307,-430.0,0.00019178,2]
[362483170,1748334633316,-430.0,0.00019178,2]
[362483171,1748334633326,-402.97310805,0.00019178,2]
[362483172,1748334633337,-430.0,0.00019178,2]
[362483173,1748334633347,-430.0,0.00019178,2]
[362483174,1748334633358,-353.43177733,0.00019178,2]
[362483175,1748334633368,-430.0,0.00019178,2]
[362483176,1748334633378,-430.0,0.00019178,2]
[362483177,1748334633388,-430.0,0.00019178,2]
[362483178,1748334633398,-400.0,0.00019178,2]
[362483179,1748334633408,-435.92375421,0.00019178,2]
[362483180,1748334633418,-430.0,0.00019178,2]
[362483181,1748334633428,-417.03820136,0.00019178,2]
[362483182,1748334633438,-405.94412354,0.00019178,2]
[362483183,1748334633448,-430.0,0.00019178,2]
[362483184,1748334633458,-400.0,0.00019178,2]
[362483185,1748334633468,-538.31024321,0.00019178,2]
[362483186,1748334633478,-430.0,0.00019178,2]
[362483187,1748334633488,-430.0,0.00019178,2]
[362483188,1748334633498,-430.0,0.00019178,2]
[362483189,1748334633507,-370.0,0.00019178,2]
[362483190,1748334633517,-430.0,0.00019178,2]
[362483191,1748334633526,-430.0,0.00019178,2]
[362483192,1748334633536,-430.0,0.00019178,2]
[362483193,1748334633546,-325.77121803,0.00019178,2]
[362483194,1748334633555,-430.0,0.00019178,2]
[362483195,1748334633564,-430.0,0.00019178,2]
[362483196,1748334633573,-430.0,0.00019178,2]
[362483197,1748334633583,-430.0,0.00019178,2]
[362483198,1748334633593,-381.16939089,0.00019178,2]
[362483199,1748334633603,-430.0,0.00019178,2]
[362483200,1748334633612,-430.0,0.00019178,2]
[362483201,1748334633621,-430.0,0.00019178,2]
[362483202,1748334633630,-400.0,0.00019178,2]
[362483203,1748334633640,-350.0,0.00019178,2]
[362483204,1748334633650,-430.0,0.00019178,2]
[362483205,1748334633660,-430.0,0.00019178,2]
[362483206,1748334633670,-430.0,0.00019178,2]
[362483207,1748334633679,-216.33212597,0.00019178,2]
[362483208,1748334633689,-430.0,0.00019178,2]
[362483209,1748334633699,-430.0,0.00019178,2]
[362483210,1748334633708,-262.44612802,0.00019178,2]
[362483211,1748334633718,-430.0,0.00019178,2]
[362483212,1748334633727,-429.24339771,0.00019178,2]
[362483213,1748334633737,-430.0,0.00019178,2]
[362483214,1748334633746,-430.0,0.00019178,2]
[362483215,1748334633756,-293.69812605,0.00019178,2]
[362483216,1748334633765,-405.34194643,0.00019178,2]
[362483217,1748334633774,-391.61921207,0.00019178,2]
[362483218,1748334633783,-430.0,0.00019178,2]
[362483219,1748334633793,-410.640704,0.00019178,2]
[362483220,1748334633802,-430.0,0.00019178,2]
[362483221,1748334633812,-430.0,0.00019178,2]
[362483222,1748334633821,-430.0,0.00019178,2]
[362483223,1748334633832,-430.0,0.00019178,2]
[362483224,1748334633841,-430.0,0.00019178,2]
[362483225,1748334633851,-430.0,0.00019178,2]
[362483226,1748334633860,-400.0,0.00019178,2]
[362483227,1748334633870,-430.0,0.00019178,2]
[362483228,1748334633879,-300.0,0.00019178,2]
[362483229,1748334633889,-450.0,0.00019178,2]
[362483230,1748334633898,-430.0,0.00019178,2]
[362483231,1748334633908,-411.73762338,0.00019178,2]
[362483232,1748334633918,-430.0,0.00019178,2]
[362483233,1748334633928,-430.0,0.00019178,2]
[362483234,1748334633937,-430.0,0.00019178,2]
[362483235,1748334633947,-430.0,0.00019178,2]
[362483236,1748334633956,-430.0,0.00019178,2]
[362483237,1748334633966,-430.0,0.00019178,2]
[362483238,1748334633975,-430.0,0.00019178,2]
[362483239,1748334633985,-240.42934723,0.00019178,2]
[362483240,1748334633994,-400.0,0.00019178,2]
[362483241,1748334634003,-430.0,0.00019178,2]
[362483242,1748334634013,-430.0,0.00019178,2]
[362483243,1748334634023,-430.0,0.00019178,2]
[362483244,1748334634033,-370.14989948,0.00019178,2]
[362483245,1748334634043,-430.0,0.00019178,2]
[362483246,1748334634052,-430.0,0.00019178,2]
[362483247,1748334634061,-257.99777585,0.00019178,2]
[362483248,1748334634072,-304.25123012,0.00019178,2]
[362483249,1748334634082,-402.50438621,0.00019178,2]
[362483250,1748334634092,-430.0,0.00019178,2]
[362483251,1748334634107,-500.0,0.00019178,2]
[362483252,1748334634117,-453.05177797,0.00019178,2]
[362483253,1748334634127,-430.0,0.00019178,2]
[362483254,1748334634138,-413.15312527,0.00019178,2]
[362483255,1748334634147,-430.0,0.00019178,2]
[362483256,1748334634157,-430.0,0.00019178,2]
[362483257,1748334634166,-430.0,0.00019178,2]
[362483258,1748334634177,-430.0,0.00019178,2]
[362483259,1748334634188,-404.86814908,0.00019178,2]
[362483260,1748334634200,-430.0,0.00019178,2]
[362483261,1748334634209,-407.65887733,0.00019178,2]
[362483262,1748334634219,-430.0,0.00019178,2]
[362483263,1748334634230,-351.92805611,0.00019178,2]
[362483264,1748334634241,-402.03573371,0.00019178,2]
[362483265,1748334634251,-430.0,0.00019178,2]
[362483266,1748334634261,-400.0,0.00019178,2]
[362483267,1748334634270,-430.0,0.00019178,2]
[362483268,1748334634280,-430.0,0.00019178,2]
[362483269,1748334634289,-430.0,0.00019178,2]
[362483270,1748334634299,-513.29447357,0.00019178,2]
[362483271,1748334634309,-430.0,0.00019178,2]
[362483272,1748334634319,-430.0,0.00019178,2]
[362483273,1748334634329,-430.0,0.00019178,2]
[362483274,1748334634338,-406.3765441,0.00019178,2]
[362483275,1748334634348,-409.11422479,0.00019178,2]
[362483276,1748334634362,-430.0,0.00019178,2]
[362483277,1748334634372,-430.0,0.00019178,2]
[362483278,1748334634383,-442.00420122,0.00019178,2]
[362483279,1748334634392,-430.0,0.00019178,2]
[362483280,1748334634402,-430.0,0.00019178,2]
[362483281,1748334634411,-430.0,0.00019178,2]
[362483282,1748334634420,-211.5841565,0.00019178,2]
[362483283,1748334634430,-400.0,0.00019178,2]
[362483284,1748334634439,-430.0,0.00019178,2]
[362483285,1748334634448,-430.0,0.00019178,2]
[362483286,1748334634458,-482.54051558,0.00019178,2]
[362483287,1748334634470,-406.4275544,0.00019178,2]
[362483288,1748334634479,-430.0,0.00019178,2]
[362483289,1748334634489,-430.0,0.00019178,2]
[362483290,1748334634500,-430.0,0.00019178,2]
[362483291,1748334634511,-430.0,0.00019178,2]
[362483292,1748334634521,-300.0,0.00019178,2]
[362483293,1748334634531,-430.0,0.00019178,2]
[362483294,1748334634545,-430.0,0.00019178,2]
[362483295,1748334634559,-430.0,0.00019178,2]
[362483296,1748334634571,-430.0,0.00019178,2]
[362483297,1748334634581,-430.0,0.00019178,2]
[362483298,1748334634590,-450.0,0.00019178,2]
[362483299,1748334634600,-430.0,0.00019178,2]
[362483300,1748334634611,-430.0,0.00019178,2]
[362483301,1748334634619,-430.0,0.00019178,2]
[362483302,1748334634629,-430.0,0.00019178,2]
[362483303,1748334634639,-430.0,0.00019178,2]
[362483304,1748334634648,-430.0,0.00019178,2]
[362483305,1748334634657,-430.0,0.00019178,2]
[362483306,1748334634666,-430.0,0.00019178,2]
[362483307,1748334634675,-430.0,0.00019178,2]
[362483308,1748334634684,-430.0,0.00019178,2]
[362483309,1748334634693,-430.0,0.00019178,2]
[362483310,1748334634703,-430.0,0.00019178,2]
[362483311,1748334634712,-430.0,0.00019178,2]
[362483312,1748334634722,-770.38,0.00019178,2]
[362483313,1748334634731,-430.0,0.00019178,2]
[362483314,1748334634740,-430.0,0.00019178,2]
[362483315,1748334634750,-370.0,0.00019178,2]
[362483316,1748334634759,-430.0,0.00019178,2]
[362483317,1748334634768,-430.0,0.00019178,2]
[362483318,1748334634778,-404.39140681,0.00019178,2]
[362483319,1748334634788,-430.0,0.00019178,2]
[362483320,1748334634797,-503.281816,0.00019178,2]
[362483321,1748334634806,-430.0,0.00019178,2]
[362483322,1748334634815,-500.0,0.00019178,2]
[362483323,1748334634826,-500.0,0.00019178,2]
[362483324,1748334634836,-500.0,0.00019178,2]
[362483325,1748334634847,-370.0,0.00019178,2]
[362483326,1748334634858,-500.0,0.00019178,2]
[362483327,1748334634868,-557.2,0.00019178,2]
[362483328,1748334634878,-2035.84,0.00019178,2]
[362483329,1748334634888,-430.0,0.00019178,2]
[362483330,1748334634898,-1404.88,0.00019178,2]
[362483331,1748334634908,-451.57756083,0.00019178,2]
[362483332,1748334634917,-430.0,0.00019178,2]
[362483333,1748334634926,-402.00983343,0.00019178,2]
[362483334,1748334634935,-430.0,0.00019178,2]